bitfinex-derivatives/quotes_ETHF0:USTF0_20250816
["timestamp","ask_amount","ask_price","bid_price","bid_amount"]
[1755340932150,3.68074068,4403.3,4403.2,26.248]
[1755340932448,3.08526319,4403.3,4403.2,26.248]
[1755340933444,0.12826319,4403.3,4403.2,26.248]
[1755340933650,0.12863488,4403.8,4403.2,25.718]
[1755340933942,3.2078,4404.1,4403.2,25.718]
[1755340933943,1.2256,4403.6,4403.4,0.7886]
[1755340934149,3.2078,4404.1,4403.5,21.7946]
[1755340934349,2.5571,4403.7,4403.6,2.0322]
[1755340934545,4.4040907,4403.7,4403.6,21.8727]
[1755340934749,4.40414174,4403.7,4403.6,21.8727]
[1755340935645,4.40414174,4403.7,4403.6,21.536]
[1755340935950,2.96784174,4403.7,4403.6,21.006]
[1755340936344,3.29075446,4403.7,4403.6,21.006]
[1755340936549,3.48601587,4403.7,4403.6,21.005]
[1755340936751,2.6619,4403.6,4403.5,21.005]
[1755340937048,3.80895446,4403.6,4403.5,21.005]
[1755340937249,3.80895446,4403.6,4403.5,21.535]
[1755340938349,3.80895446,4403.6,4403.5,21.8717]
[1755340939149,3.80895446,4403.6,4403.5,22.5263]
[1755340939355,0.12863361,4403.6,4403.5,22.9957]
[1755340939549,0.8225,4403.9,4403.5,21.8111]
[1755340939753,0.12863361,4403.8,4403.5,21.8111]
[1755340940059,3.9093,4404.1,4403.5,21.8111]
[1755340940060,0.95113361,4403.7,4403.6,1.5029]
[1755340940250,0.95113361,4403.7,4403.6,1.9723]
[1755340940452,1.53873361,4403.7,4403.6,1.9723]
[1755340941750,0.12863361,4403.7,4403.6,1.9723]
[1755340942049,0.8225,4403.8,4403.6,0.7992]
[1755340942355,0.12863361,4403.7,4403.6,1.4538]
[1755340942557,1.99633361,4403.7,4403.6,1.9723]
[1755340942756,2.69783361,4403.7,4403.6,1.9723]
[1755340944556,2.34453361,4403.7,4403.6,1.9723]
[1755340944750,3.04603361,4403.7,4403.6,1.9723]
[1755340945060,3.56443361,4403.7,4403.6,22.9723]
[1755340946857,3.56443361,4403.7,4403.6,1.9723]
[1755340947049,3.56443361,4403.7,4403.6,21.8483]
[1755340947249,2.0424,4403.6,4403.1,0.5185]
[1755340947449,3.4358,4403.2,4403.1,0.8483]
[1755340947655,1.3934,4402.7,4402.6,1.9723]
[1755340947850,3.04603361,4402.7,4402.6,1.3177]
[1755340948059,3.56443361,4402.7,4402.6,22.9713]
[1755340948659,3.04603361,4402.7,4402.6,22.9713]
[1755340949061,3.04611248,4402.7,4402.6,22.9713]
[1755340950054,1.53881248,4402.7,4402.6,22.9713]
[1755340950258,0.8225,4403.5,4402.6,22.9713]
[1755340950459,1.74410626,4403.4,4403.3,1.9723]
[1755340950659,1.99645082,4403.4,4403.3,22.9713]
[1755340950860,3.04615082,4403.4,4403.3,22.9713]
[1755340952269,3.25154421,4403.4,4403.3,22.9713]
[1755340952877,3.04615082,4403.4,4403.3,22.9713]
[1755340953274,0.95125082,4403.4,4403.3,22.9713]
[1755340953471,0.12875082,4403.4,4403.3,22.9713]
[1755340955177,0.95125082,4403.4,4403.3,22.9713]
[1755340956580,1.53885082,4403.4,4403.3,22.9713]
[1755340957173,3.04615082,4403.4,4403.3,22.9713]
[1755340957876,1.99645082,4403.4,4403.3,22.9713]
[1755340958177,1.53885082,4403.4,4403.3,22.9713]
[1755340958372,0.12875082,4403.4,4403.3,22.9713]
[1755340959377,3.2078,4404.1,4404.0,0.7992]
[1755340959682,1.61560641,4404.1,4404.0,22.9673]
[1755340959973,3.12290641,4404.1,4404.0,22.9673]
[1755340960381,3.12289303,4404.1,4404.0,22.9673]
[1755340960681,1.61559303,4404.1,4404.0,22.9673]
[1755340961078,0.20549303,4404.1,4404.0,22.9673]
[1755340961275,1.02799303,4404.1,4404.0,22.9673]
[1755340961575,1.4101,4404.1,4404.0,22.9673]
[1755340963381,2.5692,4404.1,4404.0,22.9673]
[1755340963576,0.6876,4404.2,4404.1,1.9723]
[1755340964272,3.0174,4404.2,4404.1,1.9723]
[1755340964881,1.9677,4404.2,4404.1,1.9723]
[1755340965680,3.0174,4404.2,4404.1,1.9723]
[1755340967077,3.5358,4404.2,4404.1,1.9723]
[1755340968279,3.5358,4404.2,4404.1,22.9603]
[1755340968586,3.0174,4404.2,4404.1,1.9723]
[1755340968884,3.0174,4404.2,4404.1,22.9603]
[1755340970485,3.5191,4404.2,4404.1,22.9603]
[1755340971386,3.64385185,4404.2,4404.1,22.9603]
[1755340971885,3.14215185,4404.2,4404.1,22.9603]
[1755340974189,3.13766686,4404.2,4404.1,22.9603]
[1755340974790,3.63936686,4404.2,4404.1,22.9603]
[1755340976286,0.22026686,4404.2,4404.1,22.966]
[1755340976492,3.49026686,4404.2,4404.1,22.966]
[1755340977087,2.98856686,4404.2,4404.1,22.966]
[1755340977688,3.49026686,4404.2,4404.1,22.966]
[1755340977888,3.49026686,4404.2,4404.1,22.961]
[1755340978289,1.03956686,4404.2,4404.1,22.961]
[1755340978591,1.4515,4404.2,4404.1,22.961]
[1755340978787,3.49028359,4404.2,4404.1,22.961]
[1755340979091,3.49028359,4404.2,4404.1,22.96]
[1755340980284,2.98858359,4404.2,4404.1,22.96]
[1755340980487,2.98864961,4404.2,4404.1,22.96]
[1755340981300,0.22034961,4404.2,4404.1,22.96]
[1755340981499,0.1,4404.2,4404.1,22.96]
[1755340981798,0.9193,4404.2,4404.1,22.96]
[1755340982094,0.1,4404.2,4404.1,22.96]
[1755340983002,0.9193,4404.2,4404.1,22.96]
[1755340983206,2.8683,4404.2,4404.1,22.957]
[1755340984105,1.4515,4404.2,4404.1,22.957]
[1755340984492,2.0884,4404.2,4404.1,22.957]
[1755340985004,3.37,4404.2,4404.1,21.7772]
[1755340985200,3.49026677,4404.2,4404.1,21.3078]
[1755340985406,3.49026677,4404.2,4404.1,21.7999]
[1755340985609,3.49026677,4404.2,4404.1,22.922]
[1755340985802,2.98856677,4404.2,4404.1,22.922]
[1755340986002,2.8683,4404.2,4404.1,22.922]
[1755340986404,2.98858946,4404.2,4404.1,22.922]
[1755340986608,3.49028946,4404.2,4404.1,22.2617]
[1755340987106,3.49028946,4404.2,4404.1,21.3078]
[1755340987307,3.49028946,4404.2,4404.1,21.7999]
[1755340987907,3.49028946,4404.2,4404.1,22.92]
[1755340989201,2.98858946,4404.2,4404.1,22.92]
[1755340990004,0.22028946,4404.2,4404.1,22.92]
[1755340990211,1.57178946,4404.2,4404.1,22.92]
[1755340990611,0.22028946,4404.2,4404.1,22.92]
[1755340991311,0.1,4404.2,4404.1,22.92]
[1755340992509,0.1,4404.2,4404.1,23.3738]
[1755340993305,3.2078,4406.1,4404.1,23.3738]
[1755340993306,3.27,4405.8,4405.7,1.9402]
[1755340993506,3.58944609,4405.8,4405.7,22.9122]
[1755340993710,3.39052448,4405.8,4405.7,22.2519]
[1755340993906,3.39052448,4405.8,4405.7,22.9122]
[1755340994205,2.88882448,4405.8,4405.7,22.9122]
[1755340995098,1.93142448,4405.8,4405.7,22.9122]
[1755340995305,1.8109,4405.8,4405.7,22.9122]
[1755340995500,2.1314,4405.8,4405.7,22.9122]
[1755340995701,2.7683,4405.8,4405.7,22.9122]
[1755340996812,3.27,4405.5,4405.4,4.0259]
[1755340997015,2.7683,4405.5,4405.4,26.117]
[1755340997514,0.8193,4405.5,4405.4,26.117]
[1755340997706,1.3515,4405.5,4405.4,26.117]
[1755340997906,2.7683,4405.5,4405.4,26.117]
[1755340998111,3.27,4405.5,4405.4,5.148]
[1755340998412,3.27,4405.5,4405.4,26.115]
[1755340998614,2.7683,4405.5,4405.4,26.115]
[1755340999110,3.2859,4405.5,4405.4,26.115]
[1755340999711,1.3515,4405.5,4405.4,26.115]
[1755341000513,1.4704,4406.4,4405.4,24.1748]
[1755341000710,0.5221,4405.7,4405.6,1.9351]
[1755341001013,1.3346,4405.7,4405.6,26.1069]
[1755341001512,0.5221,4406.4,4406.3,0.7646]
[1755341001707,1.51934919,4406.4,4406.3,26.1059]
[1755341001903,2.85394919,4406.4,4406.3,26.1059]
[1755341002312,3.37154919,4406.4,4406.3,26.1059]
[1755341002708,2.85394919,4406.4,4406.3,26.1059]
[1755341002913,3.37154919,4406.4,4406.3,26.1059]
[1755341003303,2.076,4406.4,4406.3,26.1059]
[1755341003509,1.7602,4406.4,4406.3,26.1059]
[1755341004308,2.076,4406.4,4406.3,26.1059]
[1755341004513,2.7339,4406.4,4406.3,26.1059]
[1755341004815,3.2515,4406.4,4406.3,26.1059]
[1755341005216,3.2515,4406.4,4406.3,26.1039]
[1755341005412,3.2515,4406.4,4406.3,24.1678]
[1755341005713,3.2515,4406.4,4406.3,20.96]
[1755341005911,3.37154998,4406.4,4406.3,20.96]
[1755341006111,3.37155453,4406.4,4406.3,20.96]
[1755341006313,3.2515,4406.4,4406.3,20.96]
[1755341008018,1.2635,4406.0,4405.9,0.8153]
[1755341008315,3.2515,4406.0,4405.9,21.7723]
[1755341009312,3.2515,4406.0,4405.9,22.8921]
[1755341009912,3.2515,4406.0,4405.9,22.8901]
[1755341014114,2.7339,4406.0,4405.9,22.8901]
[1755341014913,3.2515,4406.0,4405.9,22.8901]
[1755341015208,3.2078,4407.2,4405.9,21.7196]
[1755341015209,1.4704,4406.7,4405.9,21.7196]
[1755341015413,1.3346,4406.1,4406.0,1.9351]
[1755341015718,2.7339,4406.1,4406.0,1.9351]
[1755341016416,3.2515,4406.1,4406.0,1.9351]
[1755341017709,1.988,4407.1,4406.0,1.9351]
[1755341017913,3.2515,4406.1,4406.0,1.9351]
[1755341018108,3.2515,4406.1,4406.0,22.8851]
[1755341018514,3.2515,4406.1,4406.0,0.8153]
[1755341018816,3.2515,4405.9,4405.8,3.2078]
[1755341019018,3.2515,4405.9,4405.8,24.9711]
[1755341019617,3.2515,4405.9,4405.8,25.6434]
[1755341020423,0.7414,4405.1,4405.0,3.2078]
[1755341020621,3.2515,4404.9,4404.8,32.693]
[1755341020924,3.2515,4404.6,4404.5,3.2078]
[1755341021118,3.2515,4404.6,4404.5,24.1548]
[1755341021717,3.37160381,4404.6,4404.5,23.2924]
[1755341022416,3.37160381,4404.6,4404.5,20.947]
[1755341022722,3.2515,4404.4,4404.3,20.946]
[1755341022916,3.37160381,4404.4,4404.3,20.946]
[1755341023117,3.37160381,4404.4,4403.9,0.4982]
[1755341023316,2.7339,4403.8,4403.7,6.4538]
[1755341023517,2.7339,4403.8,4403.7,27.3998]
[1755341024219,2.7339,4403.8,4403.7,6.4538]
[1755341024418,2.7339,4403.8,4403.7,27.4018]
[1755341024619,0.6579,4404.2,4403.7,27.4018]
[1755341024818,3.2515,4404.4,4404.3,2.497]
[1755341025019,3.37174051,4404.4,4404.3,24.194]
[1755341025422,2.85414051,4404.4,4404.3,24.194]
[1755341025718,2.076,4404.4,4404.3,27.4018]
[1755341026321,2.7339,4404.4,4404.3,27.4018]
[1755341027019,0.6579,4404.7,4404.3,27.4018]
[1755341027214,0.120135,4404.6,4404.5,3.246]
[1755341027421,0.8125,4405.1,4405.0,3.246]
[1755341027623,0.6579,4405.4,4405.0,27.4018]
[1755341027815,1.988,4406.2,4405.3,0.4982]
[1755341028021,2.7339,4405.5,4405.4,24.194]
[1755341028223,2.7339,4405.5,4405.4,2.497]
[1755341028224,1.2635,4405.5,4405.4,2.497]
[1755341028424,3.2515,4405.5,4405.4,24.193]
[1755341029325,2.7339,4405.5,4405.4,24.193]
[1755341029518,2.1478,4406.0,4405.9,1.3106]
[1755341029723,3.4639569,4406.0,4405.9,23.4498]
[1755341030222,0.1200569,4406.0,4405.9,24.1846]
[1755341030422,3.2078,4406.8,4405.9,22.2576]
[1755341030729,3.3439,4406.3,4406.2,2.5028]
[1755341030926,3.4639026,4406.3,4406.2,23.4488]
[1755341031130,0.1200026,4406.3,4406.2,23.4488]
[1755341031429,3.4639026,4406.3,4406.2,23.4488]
[1755341031629,3.4639026,4406.3,4406.2,24.1836]
[1755341033831,2.2678026,4406.3,4406.2,24.1836]
[1755341034027,2.9501026,4406.3,4406.2,24.1836]
[1755341034231,3.4639026,4406.3,4406.2,23.4488]
[1755341034432,3.46308774,4406.3,4406.2,23.4488]
[1755341034632,2.94928774,4406.3,4406.2,23.4488]
[1755341034822,1.51278774,4406.3,4406.2,24.1836]
[1755341035027,2.26698774,4406.3,4406.2,24.1836]
[1755341035831,2.8301,4406.3,4406.2,24.1836]
[1755341036427,3.3439,4406.3,4406.2,24.1836]
[1755341036927,2.94929057,4406.3,4406.2,24.1836]
[1755341037335,1.95049057,4406.3,4406.2,24.1836]
[1755341037527,3.7216,4406.8,4406.2,22.2566]
[1755341037729,0.9981,4406.4,4406.3,3.2376]
[1755341038033,2.11609029,4406.4,4406.3,3.2376]
[1755341038329,0.11919029,4406.4,4406.3,3.2376]
[1755341038730,0.95239029,4406.4,4406.3,3.2376]
[1755341039034,1.51279029,4406.4,4406.3,3.2376]
[1755341039233,1.3936,4406.4,4406.3,3.2376]
[1755341039433,1.8313,4406.4,4406.3,3.2376]
[1755341039636,2.94960319,4406.4,4406.3,24.1756]
[1755341040637,2.94960319,4406.4,4406.3,23.4408]
[1755341040836,3.46340319,4406.4,4406.3,23.4408]
[1755341041231,3.46340319,4406.4,4406.3,1.8248]
[1755341041435,3.46340319,4406.4,4406.3,22.2222]
[1755341041634,3.46340319,4406.4,4406.3,22.9002]
[1755341042725,3.46340319,4406.4,4406.3,23.4408]
[1755341042926,3.46340319,4406.4,4406.3,24.1756]
[1755341043735,3.46340319,4406.4,4406.3,22.2222]
[1755341044337,3.46353805,4406.4,4406.3,22.2222]
[1755341044837,3.46353805,4406.4,4406.3,1.2842]
[1755341045038,3.46353805,4406.4,4406.3,22.2192]
[1755341045832,3.3439,4406.1,4406.0,0.5142]
[1755341046141,3.3439,4406.1,4405.3,3.2078]
[1755341046142,0.5604,4405.4,4405.3,3.2078]
[1755341046331,3.3439,4405.4,4405.3,26.6436]
[1755341046531,2.8301,4405.4,4405.3,27.3784]
[1755341046736,2.1478,4405.4,4405.3,27.3784]
[1755341047338,2.8301,4405.4,4405.3,3.2078]
[1755341047533,3.46353414,4405.4,4405.3,24.1408]
[1755341047732,0.11963414,4405.4,4404.9,0.5142]
[1755341048033,3.2078,4405.8,4404.9,1.9622]
[1755341048034,3.3439,4405.0,4404.9,1.9622]
[1755341048840,3.3439,4405.0,4404.9,2.5028]
[1755341049138,3.3439,4405.0,4404.9,24.1696]
[1755341049530,3.3439,4405.0,4404.8,3.722]
[1755341049531,1.3146,4405.0,4404.8,3.722]
[1755341049736,3.46353236,4404.9,4404.8,3.2078]
[1755341050136,3.46352804,4404.9,4404.8,3.2078]
[1755341050534,3.46352804,4404.9,4404.8,3.722]
[1755341050738,3.46352804,4404.9,4404.8,3.2078]
[1755341051940,3.46352804,4404.9,4404.8,5.17]
[1755341052134,3.46352804,4404.9,4404.8,3.2078]
[1755341053234,3.66849345,4404.9,4404.7,20.932]
[1755341053438,3.46352804,4404.8,4404.7,20.932]
[1755341054338,3.46352804,4404.8,4404.7,0.5142]
[1755341054539,3.46352804,4404.8,4404.7,21.7748]
[1755341055836,3.46352804,4404.8,4404.7,23.4348]
[1755341056039,3.46352804,4404.8,4404.7,24.1696]
[1755341058041,3.46352804,4404.8,4404.7,23.4338]
[1755341058632,2.94972804,4404.8,4404.7,24.1392]
[1755341060341,1.41932804,4404.8,4404.7,24.1392]
[1755341060645,2.80052804,4404.8,4404.7,24.1392]
[1755341061842,3.30462804,4404.8,4404.7,24.1392]
[1755341062543,2.80052804,4404.8,4404.7,24.1392]
[1755341063344,3.30462804,4404.8,4404.7,22.1373]
[1755341063532,3.30462804,4404.8,4404.7,22.7718]
[1755341063731,3.30462804,4404.8,4404.7,23.4772]
[1755341063939,3.30462804,4404.8,4404.7,24.0207]
[1755341068445,1.2607,4404.7,4404.4,0.4585]
[1755341068743,3.30462804,4404.6,4404.5,21.6967]
[1755341068945,3.30462804,4404.6,4404.5,22.7668]
[1755341069544,3.30462804,4404.6,4404.5,22.1323]
[1755341070046,3.3051136,4404.6,4404.5,22.1323]
[1755341070241,3.3051136,4404.6,4404.5,22.7668]
[1755341070446,2.8010136,4404.6,4404.5,22.7668]
[1755341070646,3.3051136,4404.6,4404.5,22.7668]
[1755341074644,3.51089672,4404.6,4404.5,22.7668]
[1755341074849,3.51089672,4404.6,4404.5,24.0157]
[1755341075647,3.51217827,4404.6,4404.5,24.0157]
[1755341080951,0.32717827,4404.6,4404.5,24.0157]
[1755341081252,5.1057,4405.8,4405.7,1.9258]
[1755341081454,6.4914645,4405.8,4405.7,23.6825]
[1755341082246,5.8887,4405.8,4405.7,23.6825]
[1755341082447,6.3928,4405.8,4405.7,2.7625]
[1755341082751,5.07106863,4405.8,4405.6,20.919]
[1755341082948,3.78756863,4405.7,4405.6,20.919]
[1755341083153,3.78756863,4405.7,4405.3,0.4585]
[1755341083340,3.185,4405.0,4404.9,2.7625]
[1755341083548,3.185,4405.0,4404.9,23.3023]
[1755341085753,3.185,4405.0,4404.9,23.6805]
[1755341086043,3.185,4405.0,4404.9,23.6785]
[1755341086450,2.6809,4405.0,4404.9,23.6785]
[1755341087247,0.744,4405.1,4405.0,2.128]
[1755341087448,3.185,4405.1,4405.0,2.7625]
[1755341089154,2.6809,4405.1,4405.0,2.7625]
[1755341089549,3.2078,4405.8,4405.1,2.3453]
[1755341089550,0.5042,4405.2,4405.1,2.3453]
[1755341089746,0.5042,4405.2,4405.1,23.6108]
[1755341089747,1.3179,4405.2,4405.1,23.6108]
[1755341090647,2.0506,4405.2,4405.1,23.6108]
[1755341090952,1.2369,4404.9,4404.8,2.3453]
[1755341091254,2.6579,4404.9,4404.8,23.6098]
[1755341093041,1.6329,4404.9,4404.8,0.7742]
[1755341093248,3.1372,4404.8,4404.7,24.1188]
[1755341093456,3.48219183,4404.8,4404.7,24.5902]
[1755341093649,3.48219183,4404.8,4404.7,24.892]
[1755341093953,3.48219183,4404.8,4404.7,24.1178]
[1755341094651,3.48222123,4404.8,4404.7,24.5902]
[1755341094951,3.48222123,4404.8,4404.7,24.892]
[1755341095647,3.48222123,4404.8,4404.7,25.5313]
[1755341095952,3.48222047,4404.8,4404.7,24.891]
[1755341096347,3.48222047,4404.8,4404.7,3.982]
[1755341096746,3.48222047,4404.8,4404.7,24.891]
[1755341097457,3.1372,4404.5,4404.4,0.7742]
[1755341097641,3.1372,4404.5,4404.1,3.5593]
[1755341097642,0.6073,4404.4,4404.1,3.5593]
[1755341097847,3.1372,4404.2,4404.1,4.6213]
[1755341098048,3.48222047,4404.2,4404.1,25.9518]
[1755341099145,3.48222047,4404.2,4404.1,3.2078]
[1755341099349,3.48222047,4404.2,4404.1,24.1148]
[1755341099945,3.48222047,4404.2,4404.1,24.5872]
[1755341100147,3.48222047,4404.2,4404.1,24.889]
[1755341100345,3.48222047,4404.2,4404.1,20.907]
[1755341100550,1.2369,4403.8,4403.6,3.2078]
[1755341100747,3.48222047,4403.7,4403.6,21.3794]
[1755341100948,3.48225885,4403.7,4403.6,21.3794]
[1755341101857,3.48225885,4403.7,4403.6,21.6812]
[1755341102061,3.48225885,4403.7,4403.6,21.3794]
[1755341102368,3.48225885,4403.7,4403.6,20.907]
[1755341102750,6.00295885,4403.7,4403.1,3.30999956]
[1755341103054,0.18055264,4404.3,4402.5,3.6802]
[1755341103055,3.1372,4403.2,4402.5,3.6802]
[1755341103260,1.2369,4402.6,4402.2,20.906]
[1755341103458,1.7356,4402.1,4402.0,3.2078]
[1755341103657,0.9219,4401.7,4401.6,0.4724]
[1755341103854,3.48198318,4401.7,4401.6,1.836]
[1755341104157,3.48198318,4401.7,4401.6,2.3453]
[1755341104360,3.25310411,4401.7,4401.6,2.3453]
[1755341104755,3.25310411,4401.7,4401.6,2.799]
[1755341105259,2.77380411,4401.7,4401.6,2.799]
[1755341106356,2.6579,4401.7,4401.6,2.799]
[1755341106755,3.6255,4402.5,4402.4,1.2336]
[1755341107062,3.6255,4402.5,4402.4,2.7825]
[1755341107063,0.11540639,4402.5,4402.4,2.7825]
[1755341107261,0.8137,4402.5,4402.4,2.7825]
[1755341107459,1.3179,4402.5,4402.4,2.7825]
[1755341108162,3.1372,4402.5,4402.4,2.7825]
[1755341108460,3.1372,4402.5,4402.4,2.3453]
[1755341108660,3.1372,4402.5,4402.4,2.7825]
[1755341108858,3.1372,4402.5,4402.4,1.836]
[1755341110257,2.6579,4402.5,4402.4,2.7825]
[1755341110462,2.0506,4402.5,4402.4,2.7825]
[1755341111155,2.6579,4402.5,4402.4,2.7825]
[1755341111358,3.1372,4402.5,4402.4,2.7825]
[1755341111959,2.6579,4402.5,4402.4,2.7825]
[1755341116759,3.1372,4402.5,4402.4,2.7825]
[1755341118466,3.2078,4403.5,4402.3,3.2078]
[1755341118668,1.6924,4401.1,4400.5,0.457]
[1755341118874,3.0678,4400.6,4400.5,1.8079]
[1755341120968,1.9699,4401.1,4401.0,2.2338]
[1755341121174,1.9699,4401.1,4401.0,23.6281]
[1755341121381,3.0678,4401.1,4401.0,23.2022]
[1755341121674,3.0678,4401.1,4401.0,22.0795]
[1755341122273,3.0678,4401.1,4401.0,21.6225]
[1755341122477,3.0678,4401.1,4401.0,21.2263]
[1755341123278,3.30486075,4401.1,4401.0,21.2263]
[1755341123681,0.8201,4400.8,4399.7,35.9168]
[1755341123888,1.3754,4400.6,4399.9,1.0904]
[1755341124187,0.4979,4400.1,4400.0,2.7231]
[1755341124387,1.2566,4400.1,4400.0,2.7231]
[1755341127084,0.7587,4400.8,4400.7,2.7231]
[1755341127286,1.99953306,4400.8,4400.7,23.6291]
[1755341127487,2.93843306,4400.8,4400.7,26.8369]
[1755341127690,3.41967977,4400.8,4400.7,23.6291]
[1755341128186,3.41967977,4400.8,4400.7,23.2032]
[1755341128989,3.41998495,4400.8,4400.7,23.2032]
[1755341131386,0.35218495,4400.8,4400.7,26.411]
[1755341131587,3.9665,4401.7,4400.7,25.3206]
[1755341131791,0.11473972,4401.6,4401.5,1.2068]
[1755341131996,0.11473972,4401.6,4401.5,23.6291]
[1755341132189,1.76243972,4401.6,4401.5,23.6291]
[1755341132494,2.70133972,4401.6,4401.5,23.6291]
[1755341132690,1.37133972,4401.6,4401.5,23.6291]
[1755341132891,0.11473972,4401.6,4401.5,23.6291]
[1755341133887,3.9665,4402.3,4401.6,0.8829]
[1755341134093,5.7944,4402.3,4402.2,2.7231]
[1755341134398,6.87775874,4402.3,4402.2,23.6281]
[1755341135495,5.7944,4402.3,4402.2,23.6281]
[1755341136595,6.2756,4402.3,4402.2,23.6281]
[1755341137197,3.2078,4402.3,4402.2,23.6281]
[1755341137793,3.9665,4402.3,4402.2,23.6281]
[1755341137995,5.7944,4402.3,4402.2,23.6281]
[1755341138495,1.6477,4402.3,4402.2,23.6281]
[1755341138694,3.9665,4403.0,4402.5,1.2068]
[1755341138999,2.5866,4402.9,4402.8,2.7231]
[1755341139200,2.5866,4402.9,4402.8,23.6251]
[1755341140697,3.2078,4403.5,4402.9,1.2068]
[1755341140892,5.7944,4403.5,4403.4,2.7231]
[1755341141094,1.8579784,4403.5,4403.4,23.6221]
[1755341141298,1.2566,4403.5,4403.4,23.6221]
[1755341141692,5.7944,4404.0,4403.9,2.2972]
[1755341141896,6.2756,4404.0,4403.9,23.6221]
[1755341142405,6.2756,4404.0,4403.9,23.1962]
[1755341142699,3.0678,4404.0,4403.9,23.1962]
[1755341143096,3.0678,4404.0,4403.9,23.6221]
[1755341143291,0.7587,4404.1,4404.0,1.5163]
[1755341143497,1.2566,4404.1,4404.0,2.7231]
[1755341143897,1.6477,4404.1,4404.0,2.7231]
[1755341144198,2.5866,4404.1,4404.0,2.7231]
[1755341145897,2.69739287,4404.1,4404.0,2.7231]
[1755341146205,1.3754,4404.0,4403.8,0.457]
[1755341146397,3.0678,4403.9,4403.8,0.7783]
[1755341146600,3.0678,4403.9,4403.8,22.0695]
[1755341146904,3.0678,4403.9,4403.8,22.7029]
[1755341147207,3.0678,4403.9,4403.8,23.1922]
[1755341147407,3.0678,4403.9,4403.8,23.6181]
[1755341151306,2.5866,4403.9,4403.8,23.6181]
[1755341151807,1.2566,4403.9,4403.8,23.6181]
[1755341152009,0.7587,4403.9,4403.8,23.6181]
[1755341152204,0.1,4404.2,4404.1,2.1642]
[1755341152509,0.8711,4404.2,4404.1,23.529]
[1755341152705,1.8091,4404.2,4404.1,23.529]
[1755341152907,2.7024,4404.2,4404.1,23.529]
[1755341153610,2.7024,4404.2,4404.1,26.7368]
[1755341154112,2.7024,4404.2,4404.1,23.529]
[1755341154309,0.1,4404.2,4404.1,26.7368]
[1755341155113,0.8711,4404.2,4404.1,5.8458]
[1755341155309,0.8711,4404.2,4404.1,26.7338]
[1755341156312,1.8091,4404.2,4404.1,26.7338]
[1755341156514,2.4063,4404.2,4404.1,26.7338]
[1755341156713,2.7024,4404.2,4404.1,26.7328]
[1755341156914,3.1551,4404.2,4404.1,21.1792]
[1755341158216,0.938,4403.5,4403.4,1.9446]
[1755341158515,2.6024,4403.5,4403.4,23.524]
[1755341160819,2.6024,4403.5,4403.4,0.767]
[1755341161114,3.0551,4403.5,4403.4,21.651]
[1755341161612,3.0551,4403.5,4403.4,23.1218]
[1755341161812,3.0551,4403.5,4403.4,23.522]
[1755341162315,3.16468425,4403.5,4403.4,23.522]
[1755341163107,3.3078,4404.2,4403.4,20.884]
[1755341163307,3.38060674,4404.1,4404.0,2.2378]
[1755341163507,3.38060674,4404.1,4404.0,0.767]
[1755341163714,1.2341,4403.3,4403.2,1.6588]
[1755341163914,2.6024,4403.3,4403.2,2.2378]
[1755341164121,3.0551,4403.1,4403.0,3.6816]
[1755341164316,3.16476156,4403.1,4403.0,24.8578]
[1755341164714,3.0551,4402.6,4402.5,0.767]
[1755341164914,3.16481478,4402.6,4402.5,21.65]
[1755341165418,3.38102185,4402.6,4402.5,21.65]
[1755341165613,3.38102185,4402.6,4402.5,22.0497]
[1755341165815,0.1097693,4402.6,4402.5,22.4682]
[1755341166015,0.7711,4403.1,4402.5,22.4682]
[1755341166218,1.343849,4403.0,4402.9,1.185]
[1755341166418,1.941049,4403.0,4402.9,22.942]
[1755341166614,1.941049,4403.0,4402.9,23.521]
[1755341166915,2.712149,4403.0,4402.9,23.521]
[1755341167316,3.164849,4403.0,4402.9,23.1208]
[1755341168319,3.38117723,4403.0,4402.9,23.1208]
[1755341168722,3.38117723,4403.0,4402.9,2.2378]
[1755341168922,3.38117723,4403.0,4402.9,22.0497]
[1755341169523,0.32607723,4403.0,4402.9,23.521]
[1755341169723,0.109749,4403.0,4402.9,23.521]
[1755341170230,1.09723162,4403.0,4402.9,23.521]
[1755341171329,1.61973162,4403.0,4402.9,23.521]
[1755341171531,1.403349,4403.0,4402.9,23.521]
[1755341171731,1.61862363,4403.0,4402.9,23.521]
[1755341172031,2.03412363,4403.0,4402.9,23.521]
[1755341172329,0.109749,4403.0,4402.9,23.521]
[1755341172826,0.880849,4403.0,4402.9,23.521]
[1755341174630,0.109749,4403.0,4402.9,23.521]
[1755341176035,0.880849,4403.0,4402.9,23.521]
[1755341176535,1.818849,4403.0,4402.9,23.521]
[1755341176730,2.114949,4403.0,4402.9,1.7457]
[1755341176936,3.0551,4402.9,4402.5,0.4738]
[1755341177235,3.0551,4402.4,4402.3,3.501]
[1755341177424,1.403349,4402.4,4402.3,25.3617]
[1755341177624,1.403349,4402.4,4402.3,5.8458]
[1755341177827,3.164849,4402.4,4402.3,26.7268]
[1755341178031,2.712149,4402.4,4402.3,26.7268]
[1755341179531,2.712149,4402.4,4402.3,5.8458]
[1755341179736,2.712149,4402.4,4402.3,26.7268]
[1755341180033,3.161249,4402.4,4402.3,26.3266]
[1755341180436,3.161249,4402.4,4402.3,5.4456]
[1755341180635,3.161249,4402.4,4402.3,25.8355]
[1755341180834,2.712149,4402.4,4402.3,26.72]
[1755341181335,2.712149,4402.4,4402.3,26.719]
[1755341181539,2.712149,4402.4,4402.3,5.838]
[1755341181736,3.161249,4402.4,4402.3,26.3463]